bitfinex-derivatives/quotes_SOLF0:USTF0_20250829
["timestamp","ask_amount","ask_price","bid_price","bid_amount"]
[1756463279691,1.90273309,209.32,209.23,7.22]
[1756463280290,0.03273309,209.32,209.18,7.22]
[1756463280487,1.87,209.28,209.18,7.22]
[1756463280794,11.72654935,209.29,209.08,7.22]
[1756463280994,1.87,209.24,209.08,7.22]
[1756463281791,6.8,209.27,209.08,7.22]
[1756463281792,0.03074616,209.18,209.08,7.22]
[1756463293302,1.89074616,209.18,209.08,7.22]
[1756463295803,0.03074616,209.18,209.08,7.22]
[1756463300309,1.88074616,209.18,209.08,7.22]
[1756463302909,0.03074616,209.18,209.08,7.22]
[1756463303511,0.03074616,209.18,209.05,62.0]
[1756463303705,0.03074616,209.18,209.06,122.22]
[1756463303912,1.85,209.2,209.07,122.22]
[1756463304214,1.85,209.2,209.08,7.49]
[1756463304813,0.03086413,209.16,209.08,7.49]
[1756463307909,1.85,209.13,209.03,7.49]
[1756463309716,0.03169236,209.1,209.03,7.49]
[1756463310218,0.03169236,209.1,209.04,7.49]
[1756463310414,0.03169236,209.1,209.06,11.72654935]
[1756463310719,1.85,209.18,209.07,7.49]
[1756463310914,1.85,209.18,209.09,7.49]
[1756463311117,1.89,209.23,209.1,7.49]
[1756463311416,1.89,209.23,209.11,7.49]
[1756463311816,1.89,209.23,209.15,0.03230211]
[1756463312020,1.89,209.23,209.15,7.52230211]
[1756463312919,1.89,209.28,209.15,7.52230211]
[1756463313421,1.89,209.28,209.15,7.49]
[1756463313917,11.72654935,209.26,209.15,7.49]
[1756463314116,11.72654935,209.26,209.1,34.14]
[1756463314721,1.89,209.21,209.09,7.49]
[1756463315019,1.89,209.21,209.16,0.03211585]
[1756463315522,1.89,209.16,209.03,7.49]
[1756463316729,1.89,209.16,209.04,7.44]
[1756463317824,0.03105427,209.12,209.04,7.44]
[1756463318825,1.89105427,209.12,209.04,7.44]
[1756463319521,1.89105427,209.12,208.98,7.44]
[1756463319719,0.03105427,209.12,208.98,7.44]
[1756463319926,1.86,209.11,208.98,7.44]
[1756463320725,0.03200359,209.07,208.98,7.44]
[1756463322923,1.89200359,209.07,208.98,7.44]
[1756463323424,0.03200359,209.07,208.98,7.44]
[1756463327726,0.03200359,209.07,208.99,4.306]
[1756463328026,0.03200359,209.07,209.0,7.44]
[1756463328734,1.89200359,209.07,208.95,7.44]
[1756463329332,0.03200359,209.07,208.95,7.44]
[1756463330135,0.03200359,209.07,208.94,7.44]
[1756463330532,1.86,209.08,208.94,7.44]
[1756463330830,0.0326299,209.03,208.94,7.44]
[1756463331330,1.86,209.04,208.94,7.44]
[1756463331535,0.03204106,209.01,208.94,7.44]
[1756463337833,1.86,209.0,208.9,7.44]
[1756463340538,0.03204106,209.01,208.9,7.44]
[1756463340735,0.03204106,209.01,208.9,11.7477]
[1756463340938,0.03204106,209.01,208.89,7.44]
[1756463341336,1.86,209.04,208.89,7.44]
[1756463342536,0.03064059,208.99,208.91,7.44]
[1756463344140,0.03064059,208.99,208.9,11.72654935]
[1756463344141,0.03064059,208.99,208.95,7.44]
[1756463344741,14.37,209.18,208.95,7.44]
[1756463344742,11.72654935,209.16,208.95,7.92]
[1756463344933,1.89,209.15,208.99,7.44]
[1756463345339,1.89,209.15,209.01,7.44]
[1756463346334,1.89,209.15,209.04,7.44]
[1756463346736,1.89,209.15,209.06,0.03081255]
[1756463347740,1.89,209.15,209.07,7.84]
[1756463348940,13.61654935,209.15,209.06,0.03081255]
[1756463349738,11.72654935,209.1,209.06,0.03081255]
[1756463349945,1.92,209.09,209.06,0.03081255]
[1756463350143,11.72654935,209.1,208.98,7.84]
[1756463350449,1.92,209.09,208.98,7.84]
[1756463350737,11.72654935,209.14,208.99,7.84]
[1756463350944,1.92,209.13,208.99,7.84]
[1756463351539,11.72654935,209.18,208.98,11.72654935]
[1756463351735,1.92,209.18,208.99,7.84]
[1756463352135,1.92,209.18,209.0,69.84]
[1756463352438,1.92,209.18,209.05,7.84]
[1756463355145,1.92,209.18,209.09,0.0303079]
[1756463356045,1.92,209.15,209.09,0.0303079]
[1756463356445,1.92,209.15,209.01,7.84]
[1756463357939,1.92,209.11,209.01,7.84]
[1756463358140,11.72654935,209.12,209.06,0.03050752]
[1756463358346,1.92,209.11,209.06,0.03050752]
[1756463358745,11.72654935,209.12,209.06,0.03050752]
[1756463358937,11.72654935,209.08,208.97,62.0]
[1756463359141,19.72951154,209.19,208.96,7.84]
[1756463359350,0.03111906,209.11,208.96,7.84]
[1756463359835,1.92,209.12,208.96,7.84]
[1756463360041,1.92,209.12,208.96,11.72654935]
[1756463360239,1.92,209.12,208.97,7.84]
[1756463360436,0.03120413,209.06,208.97,7.84]
[1756463361743,1.92,209.05,208.97,7.84]
[1756463362349,1.92,209.05,208.95,5.0]
[1756463362544,11.75775348,209.06,208.95,5.0]
[1756463362752,1.92,208.98,208.95,5.0]
[1756463363143,11.72654935,208.99,208.95,5.0]
[1756463363549,1.92,208.98,208.95,5.0]
[1756463363844,1.92,208.98,208.89,7.84]
[1756463364948,0.03170133,208.99,208.89,7.84]
[1756463366147,0.03170133,208.99,208.9,69.88654935]
[1756463366348,0.03170133,208.99,208.91,7.84]
[1756463366550,0.03170133,208.99,208.91,13.11233263]
[1756463366748,0.03170133,208.99,208.92,7.84]
[1756463369352,0.03170133,208.99,208.95,7.84]
[1756463369553,0.03170133,208.99,208.93,90.78]
[1756463369952,0.03170133,208.99,208.94,7.84]
[1756463370251,0.03170133,208.99,208.93,82.94]
[1756463370455,0.03170133,208.99,208.94,7.84]
[1756463371158,0.03170133,208.99,208.93,82.94]
[1756463371451,0.03170133,208.99,208.94,7.84]
[1756463371656,0.03170133,208.99,208.93,82.94]
[1756463372053,0.03170133,208.99,208.94,7.84]
[1756463372355,0.03170133,208.99,208.93,82.94]
[1756463372556,0.03170133,208.99,208.94,7.84]
[1756463373553,0.03170133,208.99,208.93,82.94]
[1756463373757,0.03170133,208.99,208.94,7.84]
[1756463374259,0.03170133,208.99,208.93,82.94]
[1756463374856,0.03170133,208.99,208.94,7.84]
[1756463375056,0.03170133,208.99,208.93,82.94]
[1756463375251,0.03170133,208.99,208.94,62.0]
[1756463375456,0.03170133,208.99,208.93,82.94]
[1756463376053,0.03170133,208.99,208.93,121.7]
[1756463376360,0.03170133,208.99,208.92,7.84]
[1756463376555,0.03170133,208.99,208.92,12.1473]
[1756463376761,0.03170133,208.99,208.93,96.0]
[1756463376961,0.03170133,208.99,208.93,88.2]
[1756463377459,0.03170133,208.99,208.94,7.8]
[1756463377855,0.03170133,208.99,208.93,125.9471]
[1756463378361,0.03170133,208.99,208.93,187.9471]
[1756463378558,0.03170133,208.99,208.94,7.8]
[1756463378757,0.03170133,208.99,208.93,187.9471]
[1756463379157,0.03170133,208.99,208.94,7.8]
[1756463379652,0.03170133,208.99,208.93,187.9471]
[1756463380351,0.03170133,208.99,208.94,7.8]
[1756463380558,0.03170133,208.99,208.93,187.9471]
[1756463381153,0.03170133,208.99,208.94,7.8]
[1756463381360,0.03170133,208.99,208.95,7.8]
[1756463382759,0.03170133,208.99,208.96,7.8]
[1756463382959,0.03170133,208.99,208.95,121.4]
[1756463383660,0.03170133,208.99,208.96,7.8]
[1756463384259,0.03170133,208.99,208.95,121.4]
[1756463384460,0.03170133,208.99,208.96,7.8]
[1756463384764,0.03170133,208.99,208.95,121.4]
[1756463384960,0.03170133,208.99,208.96,7.8]
[1756463385259,0.03170133,208.99,208.92,5.27233263]
[1756463385457,0.03170133,208.99,208.93,121.28]
[1756463385664,0.03170133,208.99,208.92,7.8]
[1756463385860,0.03170133,208.99,208.92,129.08]
[1756463386268,0.03170133,208.99,208.93,15.43959559]
[1756463386563,0.03170133,208.99,208.94,7.8]
[1756463386764,0.03170133,208.99,208.93,7.63959559]
[1756463386966,0.03170133,208.99,208.94,7.8]
[1756463387161,0.03170133,208.99,208.93,7.63959559]
[1756463387468,0.03170133,208.99,208.94,7.8]
[1756463387663,0.03170133,208.99,208.94,4.3069]
[1756463387962,0.03170133,208.99,208.94,7.8]
[1756463388165,0.03170133,208.99,208.93,7.63959559]
[1756463388369,0.03170133,208.99,208.96,7.8]
[1756463388862,0.03170133,208.99,208.95,62.0]
[1756463389062,0.03170133,208.99,208.96,7.8]
[1756463389468,0.03170133,208.99,208.93,83.02679559]
[1756463389768,0.03170133,208.99,208.93,70.91959559]
[1756463390063,0.03170133,208.99,208.94,7.8]
[1756463390267,1.96,209.1,208.97,7.8]
[1756463390462,1.96,209.07,208.97,7.8]
[1756463390660,1.96,209.07,208.97,31.86]
[1756463391664,1.96,209.07,209.0,0.03202374]
[1756463393871,1.96,209.04,209.0,0.03202374]
[1756463394260,1.96,209.04,208.93,7.8]
[1756463395665,1.96,209.04,208.96,0.03107126]
[1756463396268,5.35951154,209.15,208.96,0.03107126]
[1756463396269,7.63959559,209.02,208.96,0.03107126]
[1756463396474,1.96,209.02,208.96,0.03107126]
[1756463396772,1.96,209.02,208.93,7.8]
[1756463398473,1.96,209.02,208.95,0.03079943]
[1756463400280,7.63959559,209.04,208.85,5.27233263]
[1756463400281,7.63959559,208.98,208.85,5.27233263]
[1756463400581,7.63959559,208.91,208.81,13.07233263]
[1756463400781,7.63959559,208.92,208.81,7.8]
[1756463401078,7.63959559,208.92,208.8,111.08729351]
[1756463401079,7.63959559,208.92,208.83,7.8]
[1756463401385,1.96,209.03,208.91,7.8]
[1756463401581,9.59959559,209.03,208.91,7.8]
[1756463402277,46.48,209.09,208.91,7.8]
[1756463402278,1.96,208.99,208.91,7.8]
[1756463404083,11.75726183,209.04,208.91,7.8]
[1756463404280,1.96,209.04,208.92,7.8]
[1756463404883,1.96,209.01,208.92,7.8]
[1756463405081,13.71726183,208.94,208.86,5.27233263]
[1756463405282,13.71726183,208.94,208.84,7.8]
[1756463405681,1.96,209.03,208.84,7.8]
[1756463405879,1.96,209.01,208.87,7.8]
[1756463406182,1.96,209.01,208.89,7.8]
[1756463406688,0.03105499,208.97,208.89,7.8]
[1756463409382,13.71726183,208.96,208.84,7.24]
[1756463409591,1.96,208.95,208.84,7.24]
[1756463410181,0.03186626,208.92,208.84,7.24]
[1756463412279,0.03186626,208.92,208.81,5.27233263]
[1756463412485,11.75726183,208.9,208.8,7.24]
[1756463413287,1.96,208.89,208.8,7.24]
[1756463413687,0.03168341,208.87,208.8,7.24]
[1756463414989,0.03168341,208.87,208.75,7.24]
[1756463415193,11.75726183,208.86,208.75,7.24]
[1756463415385,1.97,208.85,208.75,7.24]
[1756463415891,0.03186133,208.83,208.75,7.24]
[1756463416685,1.97,208.81,208.68,7.24]
[1756463419694,11.75726183,208.78,208.68,7.24]
[1756463419893,0.03142323,208.77,208.68,7.24]
[1756463421191,0.03142323,208.77,208.68,11.5522]
[1756463421396,0.03142323,208.77,208.69,7.24]
[1756463422294,3.14,208.87,208.69,7.24]
[1756463422295,1.97,208.87,208.71,7.24]
[1756463423192,2.0,208.92,208.73,7.24]
[1756463423395,2.0,208.92,208.75,7.24]
[1756463425199,2.0,208.92,208.76,7.24]
[1756463425393,2.0,208.92,208.76,69.24]
[1756463425792,2.0,208.87,208.76,7.24]
[1756463426398,2.0,208.87,208.79,0.03179439]
[1756463426595,2.0,208.87,208.79,7.27179439]
[1756463427700,2.0,208.92,208.79,7.27179439]
[1756463428099,2.0,208.97,208.8,7.24]
[1756463428695,2.0,208.97,208.8,62.0]
[1756463428895,2.0,208.97,208.86,0.0305428]
[1756463430699,2.0,208.93,208.86,0.0305428]
[1756463435701,11.75726183,208.9,208.86,0.0305428]
[1756463436004,2.0,208.89,208.8,7.24]
[1756463437308,1.99,208.85,208.7,7.44]
[1756463438102,0.03087339,208.8,208.7,7.44]
[1756463440299,0.03087339,208.8,208.61,5.27233263]
[1756463440300,1.99,208.79,208.61,5.27233263]
[1756463440502,1.99,208.63,208.48,7.44]
[1756463440707,1.99,208.54,208.41,7.44]
[1756463440903,11.75726183,208.47,208.41,7.44]
[1756463441405,0.03056153,208.46,208.41,7.44]
[1756463441604,0.03056153,208.46,208.32,7.44]
[1756463441809,0.03056153,208.46,208.35,7.44]
[1756463442004,11.75726183,208.52,208.35,7.44]
[1756463442200,3.82585844,208.51,208.35,7.44]
[1756463442399,13.74726183,208.54,208.35,7.44]
[1756463442400,0.03065559,208.43,208.35,7.44]
[1756463444600,0.03065559,208.43,208.37,11.75726183]
[1756463444805,13.77726183,208.58,208.38,7.92]
[1756463445101,3.64212363,208.57,208.42,7.44]
[1756463445311,3.64212363,208.56,208.42,7.44]
[1756463445513,1.94,208.59,208.42,7.44]
[1756463445708,11.75726183,208.52,208.42,7.44]
[1756463446012,5.65928186,208.51,208.42,7.44]
[1756463446210,3.63928186,208.5,208.42,7.44]
[1756463446410,3.63928186,208.49,208.42,7.44]
[1756463446610,3.63928186,208.48,208.44,0.03189786]
[1756463446907,2.02,208.51,208.44,0.03189786]
[1756463447109,3.63573144,208.5,208.44,0.03189786]
[1756463447302,3.63573144,208.49,208.44,0.03189786]
[1756463447503,3.63573144,208.48,208.44,0.03189786]
[1756463447714,2.02,208.51,208.44,0.03189786]
[1756463448010,3.63229057,208.5,208.44,0.03189786]
[1756463448214,11.75726183,208.48,208.44,0.03189786]
[1756463448409,2.02,208.46,208.33,7.44]
[1756463448610,3.63229057,208.45,208.33,7.44]
[1756463448806,3.63229057,208.44,208.33,7.44]
[1756463449105,3.63229057,208.43,208.33,7.44]
[1756463449307,2.02,208.46,208.33,7.44]
[1756463449508,3.62628494,208.45,208.33,7.44]
[1756463449809,0.03064002,208.4,208.33,7.44]
[1756463451905,5.3,208.5,208.33,7.44]
[1756463452212,2.02,208.51,208.33,7.44]
[1756463452213,3.57449788,208.49,208.33,7.44]
[1756463452514,2.02,208.51,208.35,11.75726183]
[1756463452708,3.57312281,208.5,208.36,7.44]
[1756463452911,2.02,208.51,208.36,7.44]
[1756463453608,11.75726183,208.56,208.36,7.44]
[1756463453809,3.57224648,208.55,208.4,7.44]
[1756463454008,3.57224648,208.54,208.4,7.44]
[1756463454310,2.05,208.57,208.4,7.44]
[1756463454513,3.57171718,208.56,208.4,7.44]
[1756463454713,3.57171718,208.55,208.4,7.44]
[1756463454908,3.57171718,208.54,208.4,69.44]
[1756463455212,2.05,208.57,208.4,69.44]
[1756463455510,3.57150733,208.56,208.4,69.44]
[1756463455711,3.57150733,208.55,208.4,69.44]
[1756463455907,3.7078322,208.54,208.41,7.44]
[1756463456113,3.7078322,208.53,208.41,7.44]
[1756463456410,3.7078322,208.52,208.41,7.44]
[1756463456612,3.7078322,208.51,208.41,7.44]
[1756463456812,3.7078322,208.5,208.41,7.44]
[1756463457012,3.7078322,208.49,208.41,7.44]
[1756463457314,3.7078322,208.48,208.41,7.44]
[1756463457509,2.05,208.53,208.41,7.44]
[1756463457711,3.7082411,208.52,208.41,7.44]
[1756463458013,3.7082411,208.51,208.41,7.44]
[1756463458214,2.05,208.53,208.41,7.44]
[1756463458414,3.70812326,208.52,208.41,7.44]
[1756463458617,3.70812326,208.51,208.41,7.44]
[1756463458809,2.05,208.53,208.41,7.44]
[1756463459010,3.70812294,208.52,208.41,7.44]
[1756463459208,3.70812294,208.51,208.41,7.44]
[1756463459511,3.70812294,208.5,208.41,7.44]
[1756463459714,3.70812294,208.49,208.41,7.44]
[1756463459914,3.70812294,208.48,208.41,7.44]
[1756463460109,3.70812294,208.47,208.41,7.44]
[1756463460310,2.05,208.53,208.41,7.44]
[1756463460510,3.70912829,208.52,208.41,7.44]
[1756463460815,2.05,208.45,208.34,7.44]
[1756463461011,11.75726183,208.5,208.34,7.44]
[1756463461213,3.71033913,208.49,208.34,7.44]
[1756463461409,3.71033913,208.48,208.38,7.44]
[1756463461613,11.75726183,208.54,208.39,4.3183]
[1756463461813,3.70891262,208.53,208.4,7.44]
[1756463462112,3.70891262,208.52,208.4,7.44]
[1756463462317,3.70891262,208.51,208.4,7.44]
[1756463462623,3.70891262,208.5,208.44,7.47097385]
[1756463462814,2.05,208.55,208.44,7.47097385]
[1756463463016,3.70785833,208.54,208.44,7.47097385]
[1756463463219,3.70785833,208.53,208.44,7.47097385]
[1756463463514,3.70785833,208.52,208.44,7.47097385]
[1756463463823,3.70785833,208.51,208.44,7.47097385]
[1756463464120,2.05,208.55,208.44,7.47097385]
[1756463464318,3.64742947,208.54,208.44,7.47097385]
[1756463464516,3.64742947,208.53,208.44,7.47097385]
[1756463464717,2.05,208.55,208.44,7.47097385]
[1756463464912,3.64735756,208.54,208.44,7.47097385]
[1756463465115,3.64735756,208.53,208.44,7.47097385]
[1756463465420,3.64735756,208.52,208.44,7.47097385]
[1756463465615,2.05,208.55,208.44,7.47097385]
[1756463465818,3.64726423,208.54,208.44,7.47097385]
[1756463466115,3.64726423,208.53,208.44,7.47097385]
[1756463466418,2.05,208.55,208.44,7.47097385]
[1756463466419,3.64726423,208.52,208.44,7.47097385]
[1756463466618,2.05,208.55,208.44,7.47097385]
[1756463466816,21.82716143,208.53,208.44,0.03097385]
[1756463467122,2.09,208.51,208.44,0.03097385]
[1756463467315,2.09,208.45,208.34,7.84]
[1756463467617,3.64738102,208.44,208.34,7.84]
[1756463468122,2.09,208.4,208.37,0.03039723]
[1756463468326,2.09,208.38,208.25,7.84]
[1756463468524,3.64915516,208.37,208.25,7.84]
[1756463468824,2.09,208.38,208.25,7.84]
[1756463469021,3.64915888,208.37,208.25,7.84]
[1756463469224,19.73716143,208.41,208.25,7.84]
[1756463469525,3.64915246,208.4,208.25,7.84]
[1756463469720,3.6487183,208.39,208.25,7.84]
[1756463469920,19.73716143,208.41,208.25,7.84]
[1756463470116,2.09,208.39,208.25,7.84]
[1756463470320,0.03080236,208.34,208.25,7.84]
[1756463470820,5.25167163,208.78,208.34,14.48]
[1756463471026,19.73716143,209.03,208.77,19.73716143]
[1756463471221,19.73716143,208.97,208.75,7.84]
[1756463471422,19.73716143,208.84,208.56,19.73716143]
[1756463471626,19.73716143,208.79,208.57,7.84]
[1756463471824,19.73716143,208.79,208.45,54.62316646]
[1756463471825,322.34,208.78,208.61,7.84]
[1756463472025,322.34,208.78,208.63,7.84]
[1756463472228,161.28,208.77,208.64,12.65481717]
[1756463472525,161.76,208.76,208.65,12.65481717]
[1756463472723,161.76,208.76,208.66,12.65481717]
[1756463472915,161.76,208.76,208.67,12.65481717]
[1756463473119,322.34,208.78,208.68,15.89778806]
[1756463473317,161.86,208.77,208.69,8.05778806]
[1756463473517,322.34,208.78,208.7,3.75405214]
[1756463473716,322.34,208.78,208.63,7.84]
[1756463473717,162.16,208.77,208.71,3.75405214]
[1756463473924,322.34,208.78,208.72,3.75405214]
[1756463474124,322.34,208.78,208.73,8.59502429]
[1756463474326,322.34,208.78,208.74,4.84097215]
[1756463474522,322.34,208.78,208.72,0.03137663]
[1756463474720,7.42,208.73,208.64,4.31154329]
[1756463475027,322.34,208.78,208.56,4.31154329]
[1756463475028,27.15716143,208.71,208.56,4.31154329]
[1756463475222,7.42,208.65,208.57,4.31154329]
[1756463475428,163.3,208.64,208.51,4.32278095]
[1756463475628,322.22,208.63,208.52,4.32278095]
[1756463475933,322.22,208.63,208.53,12.16278095]
[1756463476128,163.94,208.62,208.54,4.32278095]
[1756463476322,163.94,208.62,208.55,4.32278095]
[1756463476526,163.94,208.62,208.56,4.32278095]
[1756463476728,322.22,208.63,208.57,4.32278095]
[1756463476929,163.98,208.62,208.58,4.32278095]
[1756463477230,164.01024981,208.61,208.59,4.32278095]
[1756463477432,164.01024981,208.61,208.6,4.32278095]
[1756463477632,0.03024981,208.61,208.6,4.32278095]
[1756463478033,163.75024981,208.61,208.6,4.32278095]
[1756463478634,0.03024981,208.61,208.6,4.32278095]
[1756463479031,163.59024981,208.61,208.6,4.32278095]
[1756463479233,167.15318085,208.61,208.6,4.32278095]
[1756463479829,11.01318085,208.61,208.6,4.32278095]
[1756463480029,174.77318085,208.61,208.53,3.86417065]
[1756463480234,3.56293104,208.6,208.54,4.35425842]
[1756463480434,10.98293104,208.59,208.55,4.35425842]
[1756463480636,3.56293104,208.58,208.56,4.35425842]
[1756463480932,3.58336785,208.57,208.52,8.21842907]
[1756463481130,3.58336785,208.56,208.53,4.35425842]
[1756463481329,166.84336785,208.55,208.52,3.86417065]
[1756463481541,166.84336785,208.55,208.53,4.36205391]
[1756463481542,3.58336785,208.54,208.53,4.36205391]
[1756463481727,3.58810067,208.54,208.53,4.36262378]
[1756463482330,166.72810067,208.54,208.53,8.22679443]
[1756463482525,174.14810067,208.54,208.53,4.36262378]
[1756463482725,174.14810067,208.54,208.5,3.86417065]
[1756463483033,3.58810067,208.53,208.52,7.84]
[1756463483235,322.22,208.63,208.52,4.36921298]
[1756463483427,164.26,208.62,208.53,8.29004561]
[1756463483738,164.36,208.61,208.54,8.29004561]
[1756463483938,164.36,208.61,208.55,4.36921298]
[1756463484135,7.45045153,208.6,208.56,4.36921298]
[1756463484333,0.03045153,208.6,208.57,4.36921298]
[1756463484534,0.03045153,208.6,208.58,8.29004561]
[1756463484535,164.48,208.59,208.58,8.29004561]
[1756463484734,164.48,208.59,208.58,4.36921298]
[1756463485336,0.03045153,208.6,208.58,4.36921298]
[1756463485531,7.45045153,208.6,208.59,4.36921298]
[1756463485834,171.89045153,208.6,208.59,4.36921298]
[1756463486037,171.89045153,208.6,208.51,3.92083263]
[1756463486539,171.86,208.6,208.52,3.92083263]
[1756463486743,171.86,208.6,208.53,3.79467884]
[1756463486940,171.86,208.6,208.54,3.79467884]
[1756463487142,171.86,208.6,208.55,3.79467884]
[1756463487143,7.42,208.59,208.55,3.79467884]
[1756463487438,7.42,208.59,208.52,3.92083263]
[1756463487439,163.84,208.58,208.56,3.79467884]
[1756463487642,163.84,208.58,208.51,3.92083263]
[1756463487643,7.42,208.57,208.51,3.92083263]
[1756463487842,7.42,208.54,208.49,3.75632]
[1756463488037,5.63,208.49,208.39,3.92083263]
[1756463488441,21.6,208.48,208.4,3.92083263]
[1756463488734,21.6,208.48,208.39,3.92083263]
[1756463489344,5.63,208.49,208.38,3.92083263]
[1756463489640,0.03093012,208.46,208.38,3.92083263]
[1756463490236,0.03093012,208.46,208.35,3.92083263]
[1756463490441,5.63,208.45,208.34,3.92083263]
[1756463491247,0.03130376,208.42,208.34,3.92083263]
[1756463491440,164.7,208.41,208.33,11.76083263]
[1756463492646,164.7,208.41,208.33,7.84]
[1756463492848,0.03130376,208.42,208.33,7.84]
[1756463493052,164.06,208.41,208.33,7.84]
[1756463494349,164.12,208.4,208.33,7.84]
[1756463494848,163.87130376,208.42,208.34,3.92083263]
[1756463495045,163.87130376,208.42,208.35,3.92083263]
[1756463495349,0.03130376,208.42,208.35,3.92083263]
[1756463495738,0.03130376,208.42,208.37,3.92083263]
[1756463495943,0.03130376,208.42,208.39,7.84]
[1756463496143,485.92,208.48,208.38,3.92083263]
[1756463496347,485.92,208.48,208.39,7.84]
[1756463496648,485.92,208.48,208.39,11.76083263]
[1756463496844,0.03094754,208.46,208.39,11.76083263]
[1756463497049,0.03094754,208.46,208.39,7.84]
[1756463498049,0.03094754,208.46,208.35,3.92083263]
[1756463499049,0.03094754,208.46,208.34,7.38]
[1756463499751,0.03094754,208.46,208.35,3.78087634]
[1756463499953,0.03094754,208.46,208.36,3.78087634]
[1756463500152,0.03094754,208.46,208.34,7.38]
[1756463500353,0.03094754,208.46,208.35,3.77930713]
[1756463500649,0.03094754,208.46,208.36,3.77930713]
[1756463500852,0.03094754,208.46,208.34,7.38]
[1756463501051,0.03094754,208.46,208.35,3.77855225]
[1756463501242,0.03094754,208.46,208.34,7.38]
[1756463501443,0.03094754,208.46,208.35,3.77841846]
[1756463501642,0.03094754,208.46,208.34,7.38]
[1756463501843,19.73716143,208.45,208.35,3.77786313]
[1756463502043,19.73716143,208.45,208.29,11.73005487]
[1756463502044,5.65,208.44,208.29,11.73005487]
[1756463502250,5.65,208.44,208.3,8.13130305]
[1756463502450,5.65,208.44,208.29,7.38]
[1756463502451,5.65,208.44,208.31,3.78124818]
[1756463502754,5.68046444,208.39,208.29,7.38]
[1756463502952,162.14,208.38,208.3,3.78193597]
[1756463503252,162.14,208.38,208.31,3.78212824]
[1756463503450,162.08,208.37,208.29,7.38]
[1756463503655,162.08,208.37,208.3,3.78023912]
[1756463503952,162.08,208.37,208.29,7.38]
[1756463504151,162.08,208.37,208.3,3.77792569]
[1756463504352,162.08,208.37,208.29,7.38]
[1756463504554,162.08,208.37,208.3,3.77654402]
[1756463504753,162.08,208.37,208.29,7.38]
[1756463505054,162.08,208.37,208.3,3.77671312]
[1756463505248,162.08,208.37,208.29,7.38]
[1756463505453,162.08,208.37,208.3,3.77613529]
[1756463505654,162.08,208.37,208.29,7.38]
[1756463505848,162.08,208.37,208.3,3.77490567]
[1756463506152,162.08,208.37,208.27,4.35193636]
[1756463506352,162.08,208.37,208.28,3.77480857]
[1756463506550,162.08,208.37,208.25,4.35193636]
[1756463506747,162.08,208.37,208.26,3.77493681]
[1756463507048,162.08,208.37,208.27,11.15493681]
[1756463507253,162.08,208.37,208.28,3.77493681]
[1756463507553,5.65,208.39,208.29,3.77493681]
[1756463507750,161.2,208.38,208.3,3.77164122]
[1756463507955,0.03114625,208.35,208.31,11.15164122]
[1756463508252,0.03114625,208.35,208.31,7.38]
[1756463509556,0.03114625,208.35,208.32,3.76831247]
[1756463509753,0.03114625,208.35,208.34,7.38]
[1756463509953,161.16,208.4,208.34,11.14831247]
[1756463510154,161.16,208.4,208.34,7.38]
[1756463511150,19.73716143,208.35,208.22,4.35193636]
[1756463511350,19.73716143,208.35,208.13,7.38]
[1756463511351,1.88,208.29,208.15,4.34145605]
[1756463511549,1.88,208.29,208.13,7.38]
[1756463511752,1.88,208.29,208.15,7.38]
[1756463511947,342.21716143,208.33,208.17,7.38]
[1756463512152,0.03065398,208.23,208.18,4.34145605]
[1756463512355,0.03065398,208.23,208.19,4.34145605]